fUSD/lending_fUSD_20250811
["ID","MTS","AMOUNT","RATE_DAILY","PERIOD"]
[378495694,1754886703896,-816.18,0.00018917,2]
[378495695,1754886703905,-400.0,0.00018917,2]
[378495696,1754886703915,-400.0,0.00018917,2]
[378495697,1754886703924,-1319.27,0.00018917,2]
[378495698,1754886703933,-400.0,0.00018917,2]
[378495699,1754886703942,-848.1,0.00018917,2]
[378495700,1754886703951,-452.23,0.00018917,2]
[378495701,1754886703961,-763.33,0.00018917,2]
[378495702,1754886703971,-400.0,0.00018917,2]
[378495703,1754886703980,-400.0,0.00018917,2]
[378495704,1754886703989,-400.0,0.00018917,2]
[378495705,1754886703998,-400.0,0.00018917,2]
[378495706,1754886704007,-534.83,0.00018917,2]
[378495707,1754886704016,-1432.31,0.00018917,2]
[378495708,1754886704025,-400.0,0.00018917,2]
[378495709,1754886704034,-400.0,0.00018917,2]
[378495710,1754886704044,-1096.29,0.00018917,2]
[378495711,1754886704054,-481.17,0.00018917,2]
[378495712,1754886704063,-500.1,0.00018917,2]
[378495713,1754886704072,-400.0,0.00018917,2]
[378495714,1754886704082,-400.0,0.00018917,2]
[378495715,1754886704092,-1173.96,0.00018917,2]
[378495716,1754886704102,-400.0,0.00018917,2]
[378495717,1754886704111,-402.28,0.00018917,2]
[378495718,1754886704121,-400.0,0.00018917,2]
[378495719,1754886704131,-1368.54,0.00018917,2]
[378495720,1754886704140,-400.0,0.00018917,2]
[378495721,1754886704149,-752.63,0.00018917,2]
[378495722,1754886704158,-538.48,0.00018917,2]
[378495723,1754886704168,-233.87330516,0.00018917,2]
[378495724,1754886704177,-673.3,0.00018917,2]
[378495725,1754886704187,-400.0,0.00018917,2]
[378495726,1754886704196,-1433.44,0.00018917,2]
[378495727,1754886704206,-400.0,0.00018917,2]
[378495728,1754886704215,-1225.04,0.00018917,2]
[378495729,1754886704224,-740.04,0.00018917,2]
[378495730,1754886704233,-1059.77,0.00018917,2]
[378495731,1754886704242,-400.0,0.00018917,2]
[378495732,1754886704251,-400.0,0.00018917,2]
[378495733,1754886704260,-400.0,0.00018917,2]
[378495734,1754886704270,-1292.83,0.00018917,2]
[378495735,1754886704279,-2940.45,0.00018917,2]
[378495736,1754886704289,-400.0,0.00018917,2]
[378495737,1754886704298,-400.0,0.00018917,2]
[378495738,1754886704307,-704.09,0.00018917,2]
[378495739,1754886704316,-1244.19,0.00018917,2]
[378495740,1754886704325,-963.23,0.00018917,2]
[378495741,1754886704334,-400.0,0.00018917,2]
[378495742,1754886704343,-505.67,0.00018917,2]
[378495743,1754886704352,-503.46,0.00018917,2]
[378495744,1754886704362,-400.0,0.00018917,2]
[378495745,1754886704371,-1351.37,0.00018917,2]
[378495746,1754886704380,-1548.12,0.00018917,2]
[378495747,1754886704389,-400.0,0.00018917,2]
[378495748,1754886704398,-439.78,0.00018917,2]
[378495749,1754886704407,-808.08,0.00018917,2]
[378495750,1754886704417,-2199.24,0.00018917,2]
[378495751,1754886704426,-1408.18,0.00018917,2]
[378495752,1754886704435,-400.0,0.00018917,2]
[378495753,1754886704445,-753.75,0.00018917,2]
[378495754,1754886704454,-400.0,0.00018917,2]
[378495755,1754886704463,-400.0,0.00018917,2]
[378495756,1754886704472,-533.78,0.00018917,2]
[378495757,1754886704482,-400.0,0.00018917,2]
[378495758,1754886704492,-181.61593365,0.00018917,2]
[378495759,1754886704501,-516.94,0.00018917,2]
[378495760,1754886704510,-1025.15,0.00018917,2]
[378495761,1754886704519,-400.0,0.00018917,2]
[378495762,1754886704528,-1428.05,0.00018917,2]
[378495763,1754886704538,-1684.69,0.00018917,2]
[378495764,1754886704547,-400.0,0.00018917,2]
[378495765,1754886704557,-1041.68,0.00018917,2]
[378495766,1754886704566,-1024.18,0.00018917,2]
[378495767,1754886704575,-1016.3,0.00018917,2]
[378495768,1754886704584,-819.85,0.00018917,2]
[378495769,1754886704597,-400.0,0.00018917,2]
[378495770,1754886704606,-1791.52,0.00018917,2]
[378495771,1754886704615,-448.18,0.00018917,2]
[378495772,1754886704624,-400.0,0.00018917,2]
[378495773,1754886704634,-973.65,0.00018917,2]
[378495774,1754886704643,-718.62,0.00018917,2]
[378495775,1754886704652,-454.71,0.00018917,2]
[378495776,1754886704661,-420.94,0.00018917,2]
[378495777,1754886704672,-538.94,0.00018917,2]
[378495778,1754886704681,-400.0,0.00018917,2]
[378495779,1754886704690,-400.0,0.00018917,2]
[378495780,1754886704702,-634.12,0.00018917,2]
[378495781,1754886704712,-400.0,0.00018917,2]
[378495782,1754886704721,-708.01,0.00018917,2]
[378495783,1754886704730,-556.52,0.00018917,2]
[378495784,1754886704739,-1061.75,0.00018917,2]
[378495785,1754886704749,-400.0,0.00018917,2]
[378495786,1754886704758,-400.0,0.00018917,2]
[378495787,1754886704768,-400.0,0.00018917,2]
[378495788,1754886704777,-914.47,0.00018917,2]
[378495789,1754886704786,-2216.94,0.00018917,2]
[378495790,1754886704796,-400.0,0.00018917,2]
[378495791,1754886704805,-504.42,0.00018917,2]
[378495792,1754886704815,-852.11,0.00018917,2]
[378495793,1754886704824,-2132.0,0.00018917,2]
[378495794,1754886704833,-929.86,0.00018917,2]
[378495795,1754886704842,-1043.97,0.00018917,2]
[378495796,1754886704851,-1784.51,0.00018917,2]
[378495797,1754886704860,-400.0,0.00018917,2]
[378495798,1754886704869,-1951.39,0.00018917,2]
[378495799,1754886704879,-400.0,0.00018917,2]
[378495800,1754886704888,-466.31,0.00018917,2]
[378495801,1754886704897,-2489.93,0.00018917,2]
[378495802,1754886704907,-1184.34,0.00018917,2]
[378495803,1754886704916,-400.0,0.00018917,2]
[378495804,1754886704925,-933.41,0.00018917,2]
[378495805,1754886704934,-673.61,0.00018917,2]
[378495806,1754886704943,-488.38252562,0.00018917,2]
[378495807,1754886704952,-937.87,0.00018917,2]
[378495808,1754886704962,-400.0,0.00018917,2]
[378495809,1754886704971,-2511.12,0.00018917,2]
[378495810,1754886704979,-400.0,0.00018917,2]
[378495811,1754886704989,-1694.6,0.00018917,2]
[378495812,1754886704998,-400.0,0.00018917,2]
[378495813,1754886705007,-471.5,0.00018917,2]
[378495814,1754886705017,-400.0,0.00018917,2]
[378495815,1754886705026,-400.0,0.00018917,2]
[378495816,1754886705035,-1957.86,0.00018917,2]
[378495817,1754886705044,-844.51,0.00018917,2]
[378495818,1754886705054,-3867.29,0.00018917,2]
[378495819,1754886705064,-420.28,0.00018917,2]
[378495820,1754886705073,-400.0,0.00018917,2]
[378495821,1754886705084,-1922.57,0.00018917,2]
[378495822,1754886705094,-2073.51,0.00018917,2]
[378495823,1754886705103,-2662.56,0.00018917,2]
[378495824,1754886705113,-400.0,0.00018917,2]
[378495825,1754886705122,-400.0,0.00018917,2]
[378495826,1754886705132,-649.45,0.00018917,2]
[378495827,1754886705142,-965.39,0.00018917,2]
[378495828,1754886705151,-2303.33,0.00018917,2]
[378495829,1754886705160,-1938.9,0.00018917,2]
[378495830,1754886705169,-4737.79,0.00018917,2]
[378495831,1754886705180,-443.09,0.00018917,2]
[378495832,1754886705189,-1611.6,0.00018917,2]
[378495833,1754886705197,-620.19,0.00018917,2]
[378495834,1754886705207,-400.0,0.00018917,2]
[378495835,1754886705217,-494.05,0.00018917,2]
[378495836,1754886705226,-3411.58,0.00018917,2]
[378495837,1754886705235,-400.0,0.00018917,2]
[378495838,1754886705244,-1364.24,0.00018917,2]
[378495839,1754886705254,-400.0,0.00018917,2]
[378495840,1754886705263,-292.01812978,0.00018917,2]
[378495841,1754886705273,-928.56,0.00018917,2]
[378495842,1754886705282,-734.37,0.00018917,2]
[378495843,1754886705291,-1639.26,0.00018917,2]
[378495844,1754886705300,-453.0,0.00018917,2]
[378495845,1754886705310,-400.0,0.00018917,2]
[378495846,1754886705319,-964.97,0.00018917,2]
[378495847,1754886705328,-400.0,0.00018917,2]
[378495848,1754886705338,-2514.27,0.00018917,2]
[378495849,1754886705347,-400.0,0.00018917,2]
[378495850,1754886705356,-426.85,0.00018917,2]
[378495851,1754886705366,-1646.59,0.00018917,2]
[378495852,1754886705375,-566.96,0.00018917,2]
[378495853,1754886705384,-489.19,0.00018917,2]
[378495854,1754886705394,-990.1,0.00018917,2]
[378495855,1754886705403,-4613.12,0.00018917,2]
[378495856,1754886705412,-1627.5,0.00018917,2]
[378495857,1754886705421,-1052.13,0.00018917,2]
[378495858,1754886705431,-1864.85,0.00018917,2]
[378495859,1754886705439,-1421.55,0.00018917,2]
[378495860,1754886705448,-400.0,0.00018917,2]
[378495861,1754886705459,-667.49,0.00018917,2]
[378495862,1754886705468,-2035.68,0.00018917,2]
[378495863,1754886705478,-400.0,0.00018917,2]
[378495864,1754886705487,-963.99,0.00018917,2]
[378495865,1754886705496,-2455.42,0.00018917,2]
[378495866,1754886705505,-400.0,0.00018917,2]
[378495867,1754886705515,-1921.78,0.00018917,2]
[378495868,1754886705524,-857.46,0.00018917,2]
[378495869,1754886705537,-371.4819522,0.00018917,2]
[378495870,1754886705546,-1592.26,0.00018917,2]
[378495871,1754886705555,-7913.38,0.00018917,2]
[378495872,1754886705564,-879.48,0.00018917,2]
[378495873,1754886705573,-400.0,0.00018917,2]
[378495874,1754886705583,-740.94,0.00018917,2]
[378495875,1754886705594,-1614.05,0.00018917,2]
[378495876,1754886705603,-403.59,0.00018917,2]
[378495877,1754886705612,-565.32,0.00018917,2]
[378495878,1754886705622,-839.55,0.00018917,2]
[378495879,1754886705631,-2321.56,0.00018917,2]
[378495880,1754886705640,-639.29,0.00018917,2]
[378495881,1754886705649,-1629.58,0.00018917,2]
[378495882,1754886705658,-939.98,0.00018917,2]
[378495883,1754886705670,-1323.73,0.00018917,2]
[378495884,1754886705680,-504.78,0.00018917,2]
[378495885,1754886705689,-400.0,0.00018917,2]
[378495886,1754886705699,-1738.72,0.00018917,2]
[378495887,1754886705709,-400.0,0.00018917,2]
[378495888,1754886705719,-400.0,0.00018917,2]
[378495889,1754886705728,-2334.26,0.00018917,2]
[378495890,1754886705738,-2203.02,0.00018917,2]
[378495891,1754886705747,-400.0,0.00018917,2]
[378495892,1754886705757,-866.1,0.00018917,2]
[378495893,1754886705766,-454.63,0.00018917,2]
[378495894,1754886705775,-307.00313869,0.00018917,2]
[378495895,1754886705784,-590.93,0.00018917,2]
[378495896,1754886705793,-1370.62,0.00018917,2]
[378495897,1754886705803,-428.1,0.00018917,2]
[378495898,1754886705812,-400.0,0.00018917,2]
[378495899,1754886705822,-400.0,0.00018917,2]
[378495900,1754886705831,-400.0,0.00018917,2]
[378495901,1754886705841,-1841.0,0.00018917,2]
[378495902,1754886705851,-792.73,0.00018917,2]
[378495903,1754886705861,-822.77,0.00018917,2]
[378495904,1754886705871,-1944.13,0.00018917,2]
[378495905,1754886705880,-400.0,0.00018917,2]
[378495906,1754886705890,-3548.7,0.00018917,2]
[378495907,1754886705899,-621.88,0.00018917,2]
[378495908,1754886705909,-400.0,0.00018917,2]
[378495909,1754886705920,-808.04,0.00018917,2]
[378495910,1754886705931,-1925.87,0.00018917,2]
[378495911,1754886705940,-1150.74,0.00018917,2]
[378495912,1754886705949,-421.99,0.00018917,2]
[378495913,1754886705959,-1979.32,0.00018917,2]
[378495914,1754886705968,-499.88,0.00018917,2]
[378495915,1754886705977,-436.14,0.00018917,2]
[378495916,1754886705987,-450.76,0.00018917,2]
[378495917,1754886705997,-400.0,0.00018917,2]
[378495918,1754886706006,-848.85,0.00018917,2]
[378495919,1754886706016,-400.0,0.00018917,2]
[378495920,1754886706025,-400.0,0.00018917,2]
[378495921,1754886706034,-4500.31,0.00018917,2]
[378495922,1754886706043,-449.78,0.00018917,2]
[378495923,1754886706053,-400.0,0.00018917,2]
[378495924,1754886706062,-2845.53,0.00018917,2]
[378495925,1754886706071,-1272.95,0.00018917,2]
[378495926,1754886706081,-286.496144,0.00018917,2]
[378495927,1754886706094,-2568.52,0.00018917,2]
[378495928,1754886706111,-400.0,0.00018917,2]
[378495929,1754886706124,-5336.15,0.00018917,2]
[378495930,1754886706137,-906.0,0.00018917,2]
[378495931,1754886706152,-1189.6,0.00018917,2]
[378495932,1754886706166,-817.46,0.00018917,2]
[378495933,1754886706181,-150.0,0.00018918,2]
[378495934,1754886706196,-1000.0,0.00018918,2]
[378495935,1754886706209,-150.0,0.00018921,2]
[378495936,1754886706221,-200.0,0.00018926,2]
[378495937,1754886706236,-200.0,0.00018926,2]
[378495938,1754886706250,-200.0,0.00018926,2]
[378495939,1754886706264,-200.0,0.00018926,2]
[378495940,1754886706279,-200.0,0.00018926,2]
[378495941,1754886706293,-200.0,0.00018926,2]
[378495942,1754886706308,-200.0,0.00018926,2]
[378495943,1754886706321,-200.0,0.00018926,2]
[378495944,1754886706335,-200.0,0.00018926,2]
[378495945,1754886706348,-200.0,0.00018926,2]
[378495946,1754886706362,-200.0,0.00018926,2]
[378495947,1754886706378,-200.0,0.00018926,2]
[378495948,1754886706391,-200.0,0.00018926,2]
[378495949,1754886706412,-200.0,0.00018926,2]
[378495950,1754886706431,-252.939198,0.00018926,2]
[378495951,1754886706446,-151.0,0.00018926,2]
[378495952,1754886706466,-2638.0,0.00018926,2]
[378495953,1754886706478,-168.0,0.00018931,2]
[378495954,1754886706489,-150.0,0.00018939,2]
[378495955,1754886706503,-150.0,0.00018941,2]
[378495956,1754886706526,-2638.0,0.00018941,2]
[378495957,1754886706538,-4240.28256971,0.00018944,2]
[378495958,1754886706549,-150.0,0.00018944,2]
[378495959,1754886706567,-8365.44474472,0.00018944,2]
[378495960,1754886706581,-3272.10838087,0.00018945,2]
[378495961,1754886706596,-161592.47271452,0.00018946,2]
[378495962,1754886706610,-2417.32670708,0.00018946,2]
[378495963,1754886706624,-55558.10132584,0.00018947,2]
[378495964,1754886706639,-8365.44474472,0.00018947,2]
[378495965,1754886706653,-6493.13703588,0.00018947,2]
[378495966,1754886706669,-6493.13703588,0.00018947,2]
[378495967,1754886706685,-150.0,0.00018947,2]
[378495968,1754886706701,-41267.460918,0.00018948,2]
[378495969,1754886706716,-55558.10132584,0.00018948,2]
[378495970,1754886706730,-161592.47271452,0.00018948,2]
[378495971,1754886706744,-242883.91681265,0.00018949,2]
[378495972,1754886706757,-242883.91681265,0.00018949,2]
[378495973,1754886706770,-8351.50052905,0.0001895,2]
[378495974,1754886706783,-161592.47271452,0.0001895,2]
[378495975,1754886706795,-852.77217816,0.0001895,2]
[378495976,1754886706809,-55558.10132584,0.00018951,2]
[378495977,1754886706822,-55558.10132584,0.00018951,2]
[378495978,1754886706835,-16193.77881065,0.00018952,2]
[378495979,1754886706847,-420.54526478,0.00018952,2]
[378495980,1754886706859,-8351.50052905,0.00018953,2]
[378495981,1754886706873,-2951.93201305,0.00018953,2]
[378495982,1754886706885,-2343.00952026,0.00018953,2]
[378495983,1754886706899,-852.77217816,0.00018953,2]
[378495984,1754886706912,-2395.17377089,0.00018954,2]
[378495985,1754886706936,-4240.28256971,0.00018955,2]
[378495986,1754886706949,-2395.17377089,0.00018956,2]
[378495987,1754886706963,-2638.0,0.00018956,2]
[378495988,1754886706977,-9400.21851375,0.00018956,2]
[378495989,1754886706990,-16193.77881065,0.00018957,2]
[378495990,1754886707003,-209.57,0.00018957,2]
[378495991,1754886707017,-511.57860089,0.00018958,2]
[378495992,1754886707030,-10410.72407987,0.00018959,2]
[378495993,1754886707043,-3272.10838087,0.00018959,2]
[378495994,1754886707055,-2343.00952026,0.00018959,2]
[378495995,1754886707068,-6493.13703588,0.00018959,2]
[378495996,1754886707080,-161592.47271452,0.0001896,2]
[378495997,1754886707092,-201.58749371,0.00018961,2]
[378495998,1754886707105,-8365.44474472,0.00018962,2]
[378495999,1754886707119,-2395.17377089,0.00018962,2]
[378496000,1754886707132,-14763.9168192,0.00018962,2]
[378496001,1754886707145,-14763.9168192,0.00018963,2]
[378496002,1754886707158,-242.15593288,0.00018964,2]
[378496003,1754886707172,-55558.10132584,0.00018964,2]
[378496004,1754886707186,-9984.20932859,0.00018964,2]
[378496005,1754886707198,-6493.13703588,0.00018965,2]
[378496006,1754886707211,-1214.64821728,0.00018965,2]
[378496007,1754886707224,-8365.44474472,0.00018966,2]
[378496008,1754886707237,-304.672,0.00018966,2]
[378496009,1754886707249,-5258.63,0.00018966,2]
[378496010,1754886707262,-41267.460918,0.00018967,2]
[378496011,1754886707276,-150.0,0.00018967,2]
[378496012,1754886707288,-3272.10838087,0.00018968,2]
[378496013,1754886707301,-511.57860089,0.00018968,2]
[378496014,1754886707314,-242883.91681265,0.00018969,2]
[378496015,1754886707326,-852.77217816,0.00018969,2]
[378496016,1754886707339,-150.0,0.00018969,2]
[378496017,1754886707352,-2951.93201305,0.00018969,2]
[378496018,1754886707364,-2417.32670708,0.0001897,2]
[378496019,1754886707376,-41267.460918,0.0001897,2]
[378496020,1754886707388,-16193.77881065,0.0001897,2]
[378496021,1754886707407,-41267.460918,0.0001897,2]
[378496022,1754886707419,-500.0,0.0001897,2]
[378496023,1754886707430,-500.0,0.0001897,2]
[378496024,1754886707441,-585.40857936,0.0001897,2]
[378496025,1754886707453,-700.0,0.0001897,2]
[378496026,1754886707465,-1301.86759728,0.0001897,2]
[378496027,1754886707477,-9984.20932859,0.0001897,2]
[378496028,1754886707488,-852.77217816,0.00018971,2]
[378496029,1754886707500,-1214.64821728,0.00018971,2]
[378496030,1754886707511,-2417.32670708,0.00018971,2]
[378496031,1754886707523,-242883.91681265,0.00018971,2]
[378496032,1754886707535,-2638.0,0.00018971,2]
[378496033,1754886707546,-9400.21851375,0.00018971,2]
[378496034,1754886707558,-3272.10838087,0.00018971,2]
[378496035,1754886707570,-9984.20932859,0.00018972,2]
[378496036,1754886707582,-201.58749371,0.00018973,2]
[378496037,1754886707605,-6493.13703588,0.00018973,2]
[378496038,1754886707619,-500.0,0.00018973,2]
[378496039,1754886707631,-511.57860089,0.00018973,2]
[378496040,1754886707642,-1214.64821728,0.00018973,2]
[378496041,1754886707654,-201.58749371,0.00018974,2]
[378496042,1754886707666,-4240.28256971,0.00018974,2]
[378496043,1754886707678,-242883.91681265,0.00018974,2]
[378496044,1754886707690,-2343.00952026,0.00018975,2]
[378496045,1754886707704,-2951.93201305,0.00018976,2]
[378496046,1754886707715,-10410.72407987,0.00018977,2]
[378496047,1754886707727,-9984.20932859,0.00018977,2]
[378496048,1754886707739,-9400.21851375,0.00018978,2]
[378496049,1754886707750,-8351.50052905,0.00018978,2]
[378496050,1754886707761,-209.5631345,0.00018979,2]
[378496051,1754886707773,-242.15593288,0.00018981,2]
[378496052,1754886707784,-14763.9168192,0.00018981,2]
[378496053,1754886707795,-150.0,0.00018981,2]
[378496054,1754886707806,-852.77217816,0.00018981,2]
[378496055,1754886707818,-1214.64821728,0.00018981,2]
[378496056,1754886707828,-2951.93201305,0.00018981,2]
[378496057,1754886707840,-10410.72407987,0.00018982,2]
[378496058,1754886707851,-2343.00952026,0.00018983,2]
[378496059,1754886707863,-4240.28256971,0.00018983,2]
[378496060,1754886707874,-242.15593288,0.00018984,2]
[378496061,1754886707885,-420.54526478,0.00018984,2]
[378496062,1754886707896,-511.57860089,0.00018984,2]
[378496063,1754886707908,-201.58749371,0.00018985,2]
[378496064,1754886707919,-8351.50052905,0.00018985,2]
[378496065,1754886707931,-10410.72407987,0.00018985,2]
[378496066,1754886707942,-2638.0,0.00018985,2]
[378496067,1754886707953,-298.09301,0.00018986,2]
[378496068,1754886707966,-298.09301,0.00018986,2]
[378496069,1754886707977,-1214.64821728,0.00018986,2]
[378496070,1754886707989,-9400.21851375,0.00018987,2]
[378496071,1754886708001,-161592.47271452,0.00018988,2]
[378496072,1754886708012,-242.15593288,0.00018989,2]
[378496073,1754886708023,-4595.3626681,0.00018989,2]
[378496074,1754886708035,-420.54526478,0.00018989,2]
[378496075,1754886708047,-511.57860089,0.00018991,2]
[378496076,1754886708059,-41267.460918,0.00018991,2]
[378496077,1754886708070,-420.54526478,0.00018991,2]
[378496078,1754886708082,-2395.17377089,0.00018991,2]
[378496079,1754886708094,-10410.72407987,0.00018991,2]
[378496080,1754886708105,-14763.9168192,0.00018992,2]
[378496081,1754886708117,-2343.00952026,0.00018992,2]
[378496082,1754886708129,-14763.9168192,0.00018992,2]
[378496083,1754886708140,-2417.32670708,0.00018993,2]
[378496084,1754886708152,-16193.77881065,0.00018993,2]
[378496085,1754886708164,-8351.50052905,0.00018993,2]
[378496086,1754886708176,-201.58749371,0.00018994,2]
[378496087,1754886708187,-242.15593288,0.00018995,2]
[378496088,1754886708199,-9400.21851375,0.00018995,2]
[378496089,1754886708211,-2417.32670708,0.00018995,2]
[378496090,1754886708222,-2951.93201305,0.00018995,2]
[378496091,1754886708234,-8365.44474472,0.00018995,2]
[378496092,1754886708245,-420.54526478,0.00018995,2]
[378496093,1754886708257,-2395.17377089,0.00018996,2]
[378496094,1754886708268,-3272.10838087,0.00018997,2]
[378496095,1754886708280,-392355.8970968,0.00018998,2]
[378496096,1754886708292,-255.127643,0.00018998,2]
[378496097,1754886708303,-255.127643,0.00018998,2]
[378496098,1754886708315,-500.0,0.00018998,2]
[378496099,1754886708326,-3057.688144,0.00018998,2]
[378496100,1754886708338,-3057.688144,0.00018998,2]
[378496101,1754886708350,-1216.91,0.00018998,2]
[378496102,1754886708361,-500.0,0.00018998,2]
[378496103,1754886708374,-802.981874,0.00018998,2]
[378496104,1754886708386,-802.981874,0.00018998,2]
[378496105,1754886708396,-151.0,0.00018998,2]
[378496106,1754886708408,-9984.20932859,0.00018999,2]
[378496107,1754886708419,-1000.0,0.00018999,2]
[378496108,1754886708430,-1000.0,0.00018999,2]
[378496109,1754886708442,-1000.0,0.00018999,2]
[378496110,1754886708454,-1000.0,0.00018999,2]
[378496111,1754886708465,-1000.0,0.00018999,2]
[378496112,1754886708476,-1000.0,0.00018999,2]
[378496113,1754886708487,-1007.3093,0.00018999,2]
[378496114,1754886708499,-500.0,0.00018999,2]
[378496115,1754886708510,-500.0,0.00018999,2]
[378496116,1754886708522,-500.0,0.00018999,2]
[378496117,1754886708532,-500.0,0.00018999,2]
[378496118,1754886708544,-500.0,0.00018999,2]
[378496119,1754886708554,-500.0,0.00018999,2]
[378496120,1754886708566,-500.0,0.00018999,2]
[378496121,1754886708578,-500.0,0.00018999,2]
[378496122,1754886708589,-500.0,0.00018999,2]
[378496123,1754886708604,-500.0,0.00018999,2]
[378496124,1754886708614,-500.0,0.00018999,2]
[378496125,1754886708625,-308.12362609,0.00018999,2]
[378496126,1754886708637,-230.660612,0.00018999,2]
[378496127,1754886708647,-346.717026,0.00018999,2]
[378496128,1754886708659,-346.717026,0.00018999,2]
[378496129,1754886708671,-230.660612,0.00018999,2]
[378496130,1754886708682,-10000.0,0.00018999,2]
[378496131,1754886708693,-10000.0,0.00018999,2]
[378496132,1754886708705,-10000.0,0.00018999,2]
[378496133,1754886708716,-10000.0,0.00018999,2]
[378496134,1754886708727,-10000.0,0.00018999,2]
[378496135,1754886708738,-1216.91,0.00018999,2]
[378496136,1754886708749,-1216.91,0.00018999,2]
[378496137,1754886708760,-1216.91,0.00018999,2]
[378496138,1754886708771,-1216.91,0.00018999,2]
[378496139,1754886708782,-1216.91,0.00018999,2]
[378496140,1754886708794,-1216.91,0.00018999,2]
[378496141,1754886708805,-1216.91,0.00018999,2]
[378496142,1754886708816,-1216.91,0.00018999,2]
[378496143,1754886708828,-1216.91,0.00018999,2]
[378496144,1754886708839,-1216.91,0.00018999,2]
[378496145,1754886708851,-1216.91,0.00018999,2]
[378496146,1754886708863,-1216.91,0.00018999,2]
[378496147,1754886708874,-1216.91,0.00018999,2]
[378496148,1754886708886,-1216.91,0.00018999,2]
[378496149,1754886708897,-1216.91,0.00018999,2]
[378496150,1754886708915,-1216.91,0.00018999,2]
[378496151,1754886708926,-1216.91,0.00018999,2]
[378496152,1754886708937,-1216.91,0.00018999,2]
[378496153,1754886708948,-1216.91,0.00018999,2]
[378496154,1754886708959,-1216.91,0.00018999,2]
[378496155,1754886708970,-1216.91,0.00018999,2]
[378496156,1754886708981,-1216.95602278,0.00018999,2]
[378496157,1754886708993,-151.0,0.00018999,2]
[378496158,1754886709004,-151.0,0.00018999,2]
[378496159,1754886709015,-1000.0,0.00018999,2]
[378496160,1754886709027,-152.345779,0.00018999,2]
[378496161,1754886709038,-152.345779,0.00018999,2]
[378496162,1754886709049,-2723.54,0.00018999,2]
[378496163,1754886709060,-543.563246,0.00018999,2]
[378496164,1754886709071,-543.563246,0.00018999,2]
[378496165,1754886709082,-400.0,0.00018999,2]
[378496166,1754886709095,-151.0,0.00018999,2]
[378496167,1754886709106,-400.0,0.00018999,2]
[378496168,1754886709117,-250.510339,0.00018999,2]
[378496169,1754886709129,-2978.91,0.00018999,2]
[378496170,1754886709140,-12455.04,0.00018999,2]
[378496171,1754886709151,-2646.5,0.00018999,2]
[378496172,1754886709163,-2398.12,0.00018999,2]
[378496173,1754886709175,-1879.73,0.00018999,2]
[378496174,1754886709187,-765.32,0.00018999,2]
[378496175,1754886709199,-151.0,0.00018999,2]
[378496176,1754886709210,-4854.36,0.00018999,2]
[378496177,1754886709222,-4427.87,0.00018999,2]
[378496178,1754886709234,-3371.95,0.00018999,2]
[378496179,1754886709246,-7022.537974,0.00018999,2]
[378496180,1754886709258,-7022.537974,0.00018999,2]
[378496181,1754886709270,-2567.61,0.00018999,2]
[378496182,1754886709282,-640.75,0.00018999,2]
[378496183,1754886709293,-16193.77881065,0.00018999,2]
[378496184,1754886709305,-4240.28256971,0.00018999,2]
[378496185,1754886709317,-2200.53201529,0.00019,2]
[378496186,1754886709331,-3000.0,0.00019,2]
[378496187,1754886709342,-3000.0,0.00019,2]
[378496188,1754886709353,-3000.0,0.00019,2]
[378496189,1754886709365,-737.19,0.00019,2]
[378496190,1754886709376,-897.489021,0.00019,2]
[378496191,1754886709387,-897.489021,0.00019,2]
[378496192,1754886709398,-897.489021,0.00019,2]
[378496193,1754886709409,-1000.0,0.00019,2]